bitfinex/quotes_BTCUSD_20240730
["timestamp","ask_amount","ask_price","bid_price","bid_amount"]
[1722373011688,0.36951393,66292.0,66291.0,0.005]
[1722373012904,0.43556825,66292.0,66291.0,0.005]
[1722373013433,0.44556825,66292.0,66291.0,0.005]
[1722373013631,0.54394806,66292.0,66291.0,0.006]
[1722373013857,0.70667256,66292.0,66291.0,0.006]
[1722373014261,0.55394806,66292.0,66291.0,0.006]
[1722373014465,0.70562003,66292.0,66291.0,0.006]
[1722373014868,0.37395834,66292.0,66291.0,0.006]
[1722373015072,0.70562003,66292.0,66291.0,0.006]
[1722373015676,0.62956571,66292.0,66291.0,0.006]
[1722373015883,0.63956571,66292.0,66291.0,0.006]
[1722373016281,0.47696212,66292.0,66291.0,0.006]
[1722373016829,0.47706744,66292.0,66291.0,0.006]
[1722373017233,0.37071275,66292.0,66291.0,0.006]
[1722373017477,0.50628093,66292.0,66291.0,0.006]
[1722373017691,0.50627922,66292.0,66291.0,0.006]
[1722373017892,0.37058753,66292.0,66291.0,0.006]
[1722373018275,0.50614081,66292.0,66291.0,0.006]
[1722373018461,0.36858753,66292.0,66291.0,0.005]
[1722373018599,0.50614025,66292.0,66291.0,0.006]
[1722373019452,0.50414025,66292.0,66291.0,0.005]
[1722373019881,0.37058753,66292.0,66291.0,0.006]
[1722373020439,0.36681655,66292.0,66291.0,0.006]
[1722373021043,0.36819494,66292.0,66291.0,0.006]
[1722373021246,0.36819494,66292.0,66291.0,0.001]
[1722373021482,0.22669494,66292.0,66291.0,0.001]
[1722373021684,0.00851,66293.0,66291.0,0.52034716]
[1722373021935,0.00851,66293.0,66292.0,0.150847]
[1722373022131,0.00851,66293.0,66291.0,0.1443]
[1722373022132,0.002,66292.0,66291.0,0.1443]
[1722373022245,0.002,66292.0,66291.0,0.144213]
[1722373022642,0.00483,66292.0,66291.0,0.145213]
[1722373022841,0.00283,66292.0,66291.0,0.144213]
[1722373023293,0.00283,66292.0,66291.0,0.36226551]
[1722373023502,0.00283,66292.0,66291.0,0.36071131]
[1722373023732,0.00083,66292.0,66291.0,0.66241131]
[1722373024990,0.00083,66292.0,66291.0,0.66941131]
[1722373026060,0.00083,66292.0,66291.0,0.56941131]
[1722373026349,0.00083,66292.0,66291.0,0.202063]
[1722373026547,0.00083,66292.0,66291.0,0.2036172]
[1722373027664,0.00083,66292.0,66291.0,0.202063]
[1722373028105,0.00083,66292.0,66291.0,0.503763]
[1722373028307,0.00083,66292.0,66291.0,0.202063]
[1722373028505,0.00083,66292.0,66291.0,0.2036172]
[1722373028974,0.00083,66292.0,66291.0,0.0397572]
[1722373029147,0.00083,66292.0,66291.0,0.1906072]
[1722373029572,0.00083,66292.0,66291.0,0.1836072]
[1722373030140,0.00083,66292.0,66291.0,0.0327572]
[1722373030452,0.00083,66292.0,66291.0,0.0397572]
[1722373030652,0.00083,66292.0,66291.0,0.189053]
[1722373031059,0.00083,66292.0,66291.0,0.0397572]
[1722373031641,0.00083,66292.0,66291.0,0.0327572]
[1722373032064,0.00083,66292.0,66291.0,0.0467572]
[1722373032671,0.00083,66292.0,66291.0,0.045203]
[1722373033186,0.00083,66292.0,66291.0,0.0467572]
[1722373035148,0.00083,66292.0,66291.0,0.497753]
[1722373035360,0.00083,66292.0,66291.0,0.799453]
[1722373035703,0.00083,66292.0,66291.0,0.497753]
[1722373035895,0.00083,66292.0,66291.0,0.643453]
[1722373036730,0.00083,66292.0,66291.0,0.6450072]
[1722373036950,0.00083,66292.0,66291.0,0.643453]
[1722373038058,0.00083,66292.0,66291.0,1.246853]
[1722373038264,0.00851,66293.0,66292.0,0.37690655]
[1722373038440,0.00851,66293.0,66292.0,1.12092959]
[1722373038898,0.00851,66293.0,66292.0,1.43262459]
[1722373039103,0.00851,66293.0,66292.0,1.42262459]
[1722373039718,0.00851,66293.0,66292.0,1.43662459]
[1722373039930,0.0085,66295.0,66292.0,1.43662459]
[1722373039931,0.0085,66295.0,66294.0,1.399877]
[1722373040144,0.0085,66295.0,66294.0,1.68031004]
[1722373040328,0.0085,66305.0,66304.0,0.18111]
[1722373040566,0.0085,66305.0,66304.0,0.62455]
[1722373040879,0.0085,66305.0,66304.0,0.92619]
[1722373042218,0.0085,66305.0,66304.0,1.22783]
[1722373042472,0.0085,66305.0,66304.0,0.92619]
[1722373042690,0.0085,66305.0,66304.0,1.22783]
[1722373043110,0.0085,66305.0,66304.0,1.24083]
[1722373043322,0.0085,66311.0,66306.0,0.784367]
[1722373043516,0.0085,66311.0,66306.0,0.926967]
[1722373043744,0.0085,66311.0,66306.0,1.228598]
[1722373045016,0.0085,66311.0,66306.0,0.96927814]
[1722373045222,0.0085,66311.0,66306.0,0.846367]
[1722373045428,0.0085,66311.0,66306.0,0.482736]
[1722373045632,0.0085,66311.0,66306.0,0.784367]
[1722373046582,0.0085,66311.0,66306.0,0.496736]
[1722373046985,0.0085,66311.0,66306.0,0.482736]
[1722373047187,0.0085,66311.0,66306.0,0.496736]
[1722373047575,0.0085,66311.0,66306.0,0.482736]
[1722373047790,0.0085,66311.0,66306.0,0.496736]
[1722373048861,0.0085,66311.0,66306.0,0.195105]
[1722373049069,0.0085,66311.0,66306.0,0.496736]
[1722373049280,0.0085,66311.0,66306.0,0.04429]
[1722373049683,0.0085,66311.0,66305.0,0.181107]
[1722373050069,0.0085,66311.0,66306.0,0.04429]
[1722373050686,0.0085,66311.0,66306.0,0.0851141]
[1722373050863,0.0085,66311.0,66306.0,0.0711141]
[1722373051245,0.0085,66311.0,66306.0,0.2219291]
[1722373051451,0.0085,66311.0,66306.0,0.5861601]
[1722373052637,0.0085,66311.0,66306.0,0.2219291]
[1722373052848,0.0085,66311.0,66306.0,0.195105]
[1722373053251,0.0085,66311.0,66306.0,0.04429]
[1722373053452,0.0085,66311.0,66306.0,0.03029]
[1722373053882,0.0085,66311.0,66306.0,0.150815]
[1722373054302,0.0085,66311.0,66306.0,0.014]
[1722373054507,0.0085,66311.0,66306.0,0.164815]
[1722373054753,0.0085,66311.0,66306.0,0.014]
[1722373054911,0.0085,66311.0,66306.0,0.164815]
[1722373058969,0.0085,66311.0,66306.0,0.014]
[1722373059401,0.0085,66311.0,66306.0,0.185015]
[1722373060669,0.0085,66311.0,66306.0,0.0342]
[1722373062744,0.1504,66307.0,66306.0,0.0342]
[1722373063213,0.22238567,66307.0,66306.0,0.0342]
[1722373063575,0.22238732,66307.0,66306.0,0.1209]
[1722373063741,0.0842,66307.0,66306.0,0.16707192]
[1722373063947,0.0085,66307.0,66306.0,0.16707192]
[1722373065106,0.0085,66307.0,66306.0,0.22797192]
[1722373065313,0.0085,66307.0,66306.0,0.11098192]
[1722373065514,0.0085,66307.0,66306.0,0.0342]
[1722373065715,0.08105914,66307.0,66306.0,0.0342]
[1722373065925,0.09680446,66307.0,66306.0,0.0342]
[1722373066160,0.23860446,66307.0,66306.0,0.0342]
[1722373066947,0.30636019,66307.0,66306.0,0.0342]
[1722373067293,0.32893659,66307.0,66306.0,0.0342]
[1722373067739,0.23860446,66307.0,66306.0,0.0202]
[1722373067935,0.23860446,66307.0,66306.0,0.0252]
[1722373067936,0.24237493,66307.0,66306.0,0.0252]
[1722373068489,0.39300797,66307.0,66306.0,0.0252]
[1722373068850,0.49885874,66307.0,66306.0,0.0252]
[1722373069093,0.32037348,66307.0,66306.0,0.0252]
[1722373069303,0.63406562,66307.0,66306.0,0.0252]
[1722373069816,0.52821286,66307.0,66306.0,0.0252]
[1722373070040,0.4990464,66307.0,66306.0,0.0202]
[1722373070374,0.39366637,66307.0,66306.0,0.0202]
[1722373070519,0.50003996,66307.0,66306.0,0.0202]
[1722373070735,0.43573301,66307.0,66306.0,0.0202]
[1722373070936,0.39566637,66307.0,66306.0,0.0202]
[1722373071152,0.50213263,66307.0,66306.0,0.0202]
[1722373071584,0.68294563,66307.0,66306.0,0.0202]
[1722373071798,0.61213263,66307.0,66306.0,0.0202]
[1722373072194,0.78462243,66307.0,66306.0,0.0202]
[1722373072396,0.76452915,66307.0,66306.0,0.0202]
[1722373072729,0.93355975,66307.0,66306.0,0.0202]
[1722373072940,1.2355467,66307.0,66306.0,0.0202]
[1722373073146,1.54450373,66307.0,66306.0,0.0202]
[1722373073727,0.02,66297.0,66276.0,0.05049]
[1722373073956,0.02,66297.0,66276.0,0.0202]
[1722373073957,0.75497504,66292.0,66276.0,0.0202]
[1722373074138,0.9544286,66292.0,66276.0,0.0202]
[1722373074337,0.7327336,66292.0,66276.0,0.0202]
[1722373074590,0.62602894,66292.0,66276.0,0.0202]
[1722373074796,0.7528977,66292.0,66265.0,0.0651]
[1722373074983,1.18615476,66292.0,66265.0,0.0651]
[1722373075149,0.75758367,66292.0,66265.0,0.0651]
[1722373075469,1.21464449,66292.0,66265.0,0.0651]
[1722373075677,1.00652977,66292.0,66272.0,0.00786329]
[1722373075849,1.48845522,66292.0,66272.0,0.00786329]
[1722373076053,1.51145522,66292.0,66272.0,0.00786329]
[1722373076264,0.74321822,66292.0,66291.0,0.001913]
[1722373076468,0.65563347,66292.0,66291.0,0.001913]
[1722373076652,0.64963347,66292.0,66291.0,0.000913]
[1722373076867,0.97132847,66292.0,66291.0,0.000913]
[1722373077102,1.27302347,66292.0,66291.0,0.000913]
[1722373077262,1.42371779,66292.0,66291.0,0.000913]
[1722373078235,1.43771779,66292.0,66291.0,0.000913]
[1722373078625,1.42371779,66292.0,66291.0,0.000913]
[1722373078819,1.43771779,66292.0,66291.0,0.000913]
[1722373079023,1.14398013,66292.0,66291.0,0.000913]
[1722373079220,2.28073013,66292.0,66291.0,0.000913]
[1722373079639,2.58242513,66292.0,66291.0,0.000913]
[1722373080527,1.96903513,66292.0,66291.0,0.000913]
[1722373080757,1.91825674,66292.0,66291.0,0.000913]
[1722373080908,2.58242513,66292.0,66291.0,0.000913]
[1722373081265,2.3933172,66292.0,66291.0,0.000913]
[1722373081602,2.39337963,66292.0,66291.0,0.000913]
[1722373082020,2.69507463,66292.0,66291.0,0.000913]
[1722373082241,2.09168463,66292.0,66291.0,0.000913]
[1722373082523,1.73466045,66292.0,66291.0,0.000913]
[1722373082727,1.82807073,66292.0,66291.0,0.000913]
[1722373083278,1.82768819,66292.0,66291.0,0.000913]
[1722373083976,1.89518569,66292.0,66291.0,0.000913]
[1722373084160,1.82768819,66292.0,66291.0,0.000913]
[1722373085232,1.82699745,66292.0,66291.0,0.000913]
[1722373086300,1.82712546,66292.0,66291.0,0.000913]
[1722373087101,1.80712546,66292.0,66291.0,0.000913]
[1722373087301,1.63343114,66292.0,66291.0,0.000913]
[1722373088386,1.55096613,66292.0,66291.0,0.000913]
[1722373088615,1.61569792,66292.0,66291.0,0.000913]
[1722373089525,1.55399792,66292.0,66291.0,0.000913]
[1722373089723,1.45989792,66292.0,66291.0,0.000913]
[1722373090372,1.5370115,66292.0,66291.0,0.000913]
[1722373091206,0.4002615,66292.0,66291.0,0.000913]
[1722373091800,0.4092615,66292.0,66291.0,0.000913]
[1722373092001,0.4002615,66292.0,66291.0,0.000913]
[1722373092401,0.4102615,66292.0,66291.0,0.000913]
[1722373092642,0.23314792,66292.0,66291.0,0.000913]
[1722373092842,0.23691964,66292.0,66291.0,0.000913]
[1722373092989,0.22691964,66292.0,66291.0,0.000913]
[1722373093187,0.22314792,66292.0,66291.0,0.000913]
[1722373093386,0.23312692,66292.0,66291.0,0.000913]
[1722373093597,0.25681717,66292.0,66291.0,0.000913]
[1722373093854,0.23312485,66292.0,66291.0,0.000913]
[1722373095168,0.16063304,66292.0,66291.0,0.000913]
[1722373095381,0.23245052,66292.0,66291.0,0.000913]
[1722373095583,0.16063304,66292.0,66291.0,0.000913]
[1722373095731,0.23845134,66292.0,66291.0,0.000913]
[1722373095941,0.0718183,66292.0,66291.0,0.000913]
[1722373096140,0.00377156,66297.0,66291.0,0.141013]
[1722373096361,0.005,66292.0,66291.0,0.141013]
[1722373096538,0.005,66292.0,66291.0,0.1702003]
[1722373096744,0.005,66292.0,66291.0,0.141013]
[1722373098195,0.00377125,66295.0,66291.0,0.141013]
[1722373098429,0.15440429,66295.0,66291.0,0.141013]
[1722373098629,0.07525333,66294.0,66292.0,0.00131494]
[1722373098788,0.07148208,66293.0,66292.0,0.00131494]
[1722373099586,0.07148208,66293.0,66291.0,0.141013]
[1722373100387,0.15063304,66295.0,66292.0,0.0015542]
[1722373100388,0.00377125,66294.0,66292.0,0.0015542]
[1722373100607,0.07175485,66293.0,66291.0,0.141013]
[1722373101907,0.07184266,66292.0,66291.0,0.141013]
[1722373102239,0.07484266,66293.0,66291.0,0.141013]
[1722373102441,0.07184266,66292.0,66291.0,0.141013]
[1722373102642,0.07184266,66293.0,66291.0,0.141013]
[1722373102839,0.07484266,66293.0,66292.0,0.0015542]
[1722373103162,0.07484266,66293.0,66291.0,0.000913]
[1722373103401,0.07184266,66292.0,66291.0,0.000913]
[1722373103641,0.1544043,66292.0,66291.0,0.000913]
[1722373103882,0.22724696,66292.0,66291.0,0.000913]
[1722373104410,0.2234757,66292.0,66291.0,0.000913]
[1722373105228,0.22339007,66292.0,66291.0,0.000913]
[1722373105607,0.22616162,66292.0,66291.0,0.000913]
[1722373105811,0.22716162,66292.0,66291.0,0.000913]
[1722373106193,0.22616162,66292.0,66291.0,0.000913]
[1722373106568,0.22339007,66292.0,66291.0,0.000913]
[1722373107200,0.22439007,66292.0,66291.0,0.000913]
[1722373108171,0.22420855,66292.0,66291.0,0.000913]
[1722373108379,0.22420855,66292.0,66291.0,0.065213]
[1722373108578,0.22443183,66292.0,66291.0,0.065213]
[1722373108815,0.22443183,66292.0,66291.0,0.0793143]
[1722373109042,0.22243183,66292.0,66291.0,0.0793143]
[1722373109265,0.07198031,66292.0,66291.0,0.1604143]
[1722373109452,0.001,66292.0,66291.0,0.1604143]
[1722373110185,0.00377093,66299.0,66291.0,0.1604143]
[1722373110403,0.07134083,66298.0,66292.0,0.03112723]
[1722373110969,0.07134083,66298.0,66293.0,0.00122687]
[1722373111168,1.13675,66300.0,66295.0,0.0765]
[1722373111403,0.07110134,66299.0,66295.0,0.0765]
[1722373111577,0.07110134,66299.0,66296.0,0.0015542]
[1722373111980,0.07110134,66299.0,66295.0,0.0765]
[1722373112789,0.07110134,66299.0,66297.0,0.0631]
[1722373112995,0.07487226,66299.0,66297.0,0.0631]
[1722373113313,0.07110134,66298.0,66297.0,0.0631]
[1722373115345,0.07098347,66298.0,66297.0,0.0631]
[1722373115948,0.15440396,66298.0,66291.0,0.000913]
[1722373116148,0.07534716,66296.0,66292.0,0.00153988]
[1722373116360,0.07475466,66295.0,66292.0,0.00153988]
[1722373116567,0.07098347,66294.0,66292.0,0.00153988]
[1722373116764,0.1417,66299.0,66291.0,0.000913]
[1722373116765,0.06773597,66299.0,66294.0,0.0775]
[1722373116964,0.07075762,66298.0,66295.0,0.0144013]
[1722373117229,0.07075762,66297.0,66296.0,0.0015542]
[1722373117454,0.07041943,66297.0,66296.0,0.01755105]
[1722373117965,0.07041943,66297.0,66296.0,0.01599685]
[1722373118321,0.07041943,66297.0,66294.0,0.0775]
[1722373118495,0.07031299,66296.0,66295.0,0.0015542]
[1722373118916,0.07031299,66296.0,66294.0,0.0775]
[1722373119106,0.00377095,66299.0,66295.0,0.0015542]
[1722373119304,0.07031298,66298.0,66296.0,0.01455672]
[1722373119908,0.07031298,66298.0,66294.0,0.0775]
[1722373120129,0.07031298,66298.0,66294.0,0.0785]
[1722373120387,0.07031298,66298.0,66294.0,0.0775]
[1722373120585,0.07031298,66298.0,66295.0,0.00116121]
[1722373120789,0.07031298,66298.0,66294.0,0.0775]
[1722373121005,0.07031298,66298.0,66295.0,0.0294864]
[1722373121155,0.07031298,66298.0,66294.0,0.0775]
[1722373121486,0.07131298,66298.0,66295.0,0.0015542]
[1722373121718,0.07031298,66297.0,66294.0,0.0775]
[1722373121934,0.001,66298.0,66295.0,0.0144013]
[1722373122129,0.07028104,66297.0,66295.0,0.0144013]
[1722373122330,0.07028104,66297.0,66296.0,0.0015542]
[1722373122538,0.07028104,66297.0,66294.0,0.0775]
[1722373122728,0.07028104,66297.0,66295.0,0.0294864]
[1722373122919,0.07028104,66296.0,66295.0,0.0294864]
[1722373123279,0.07028104,66297.0,66295.0,0.0294864]
[1722373123864,0.07028104,66297.0,66296.0,0.01834994]
[1722373124067,0.07028104,66297.0,66294.0,0.0775]
[1722373124260,0.07028104,66296.0,66295.0,0.00106195]
[1722373124382,0.13800592,66300.0,66295.0,0.001]
[1722373124578,0.07405199,66299.0,66295.0,0.001]
[1722373124788,0.07028104,66298.0,66295.0,0.001]
[1722373125195,0.06774542,66305.0,66297.0,0.364771]
[1722373125513,0.07044588,66304.0,66300.0,0.0629]
[1722373125716,0.47903,66306.0,66300.0,0.0629]
[1722373125924,0.07008907,66305.0,66301.0,0.03853671]
[1722373127256,0.004,66305.0,66301.0,0.18780751]
[1722373127462,0.004,66305.0,66302.0,0.0443271]
[1722373127686,0.00083,66306.0,66302.0,0.0443271]
[1722373128108,0.00083,66306.0,66303.0,0.0015542]
[1722373129042,0.003,66305.0,66303.0,0.0015542]
[1722373129420,0.00083,66306.0,66303.0,0.0015542]
[1722373129627,0.00083,66306.0,66304.0,0.03423123]
[1722373129788,0.00083,66306.0,66303.0,0.004]
[1722373129993,0.00083,66306.0,66301.0,0.0015542]
[1722373130384,0.0755,66304.0,66303.0,0.005]
[1722373130583,0.0755,66304.0,66299.0,0.0015542]
[1722373130584,0.1464213,66304.0,66299.0,0.0015542]
[1722373130787,0.22532483,66303.0,66299.0,0.0015542]
[1722373130993,0.0709213,66302.0,66295.0,0.0015542]
[1722373131228,0.15440398,66301.0,66295.0,0.0015542]
[1722373131412,0.0709213,66300.0,66295.0,0.0015542]
[1722373131831,0.0711188,66299.0,66295.0,0.0015542]
[1722373132039,0.15440398,66301.0,66295.0,0.0015542]
[1722373132266,0.07111879,66300.0,66295.0,0.0015542]
[1722373132493,0.07111879,66300.0,66294.0,0.07184327]
[1722373132853,0.07111879,66300.0,66295.0,0.0015542]
[1722373133298,0.07111879,66300.0,66295.0,0.0055542]
[1722373133691,0.07111879,66300.0,66295.0,0.01760525]
[1722373133902,0.00083,66306.0,66295.0,0.01760525]
[1722373133903,0.06775374,66304.0,66299.0,0.064]
[1722373134093,0.09116832,66306.0,66300.0,0.1520522]
[1722373134094,0.00083,66306.0,66300.0,0.1520522]
[1722373134260,0.01567083,66305.0,66300.0,0.19793501]
[1722373134459,0.01567083,66304.0,66300.0,0.19793501]
[1722373134664,0.07911763,66303.0,66300.0,0.0012232]
[1722373134866,0.0716875,66302.0,66294.0,0.10223327]
[1722373135117,0.06417047,66303.0,66295.0,0.0015542]
[1722373135410,0.06778608,66301.0,66295.0,0.0015542]
[1722373135557,0.0716917,66300.0,66295.0,0.04990435]
[1722373136172,0.0716917,66300.0,66295.0,0.0015542]
[1722373136755,0.0726917,66300.0,66295.0,0.0065542]
[1722373136954,0.0716917,66299.0,66295.0,0.0065542]
[1722373137243,0.01567218,66298.0,66295.0,0.0065542]
[1722373137491,0.001,66300.0,66295.0,0.0065542]
[1722373137657,0.07222235,66299.0,66295.0,0.005]
[1722373137876,0.001,66300.0,66296.0,0.0015542]
[1722373138227,0.001,66300.0,66295.0,0.06893475]
[1722373138399,0.001,66300.0,66295.0,0.005]
[1722373138605,0.07155683,66302.0,66296.0,0.0015542]
[1722373138814,0.07212895,66301.0,66294.0,0.10223327]
[1722373139019,0.001,66299.0,66295.0,0.0065542]
[1722373139241,0.0824,66297.0,66295.0,0.0015542]
[1722373139447,0.14100534,66296.0,66295.0,0.0065542]
[1722373139586,0.20882426,66296.0,66295.0,0.005]
[1722373139795,0.20882426,66296.0,66293.0,0.00802099]
[1722373139796,0.14100534,66296.0,66293.0,0.00802099]
[1722373140032,0.1399673,66295.0,66294.0,0.0065542]
[1722373140450,0.1399673,66295.0,66291.0,0.00868451]
[1722373140792,0.07143729,66294.0,66291.0,0.02258196]
[1722373141177,0.07143711,66293.0,66291.0,0.02258196]
[1722373141383,0.06783789,66295.0,66291.0,0.00868451]
[1722373141620,0.06783789,66295.0,66292.0,0.00146827]
[1722373141621,0.0713161,66294.0,66292.0,0.00146827]
[1722373142230,0.0713161,66294.0,66291.0,0.00868451]
[1722373142392,0.001,66293.0,66291.0,0.01368451]
[1722373142595,0.06783789,66295.0,66291.0,0.03831459]
[1722373142795,0.07146923,66294.0,66292.0,0.004]
[1722373142958,0.07146923,66294.0,66292.0,0.02331726]
[1722373143154,0.07146923,66294.0,66292.0,0.01931726]
[1722373143371,0.07146923,66293.0,66292.0,0.01931726]
[1722373143572,0.07146923,66293.0,66291.0,0.01268451]
[1722373143813,0.06785091,66294.0,66291.0,0.01268451]
[1722373143991,0.07131153,66293.0,66291.0,0.01268451]
[1722373144194,0.06785288,66294.0,66291.0,0.01268451]
[1722373144404,0.15061205,66293.0,66291.0,0.01268451]
[1722373144678,0.3574941,66292.0,66291.0,0.000913]
[1722373144880,0.36894122,66292.0,66291.0,0.000913]
[1722373145516,0.47315074,66292.0,66291.0,0.000913]
[1722373145719,0.47315074,66292.0,66291.0,0.005913]
[1722373145720,0.50465793,66292.0,66291.0,0.005913]
[1722373145934,0.52848864,66292.0,66291.0,0.000913]
[1722373146139,0.42379101,66292.0,66291.0,0.000913]
[1722373146315,0.5284861,66292.0,66291.0,0.003913]
[1722373146541,0.42379101,66292.0,66291.0,0.003913]
[1722373147161,0.55948419,66292.0,66291.0,0.003913]
[1722373147369,0.42434798,66292.0,66291.0,0.003913]
[1722373147774,0.56002337,66292.0,66291.0,0.003913]
[1722373147946,0.50517358,66292.0,66291.0,0.003913]
[1722373149502,0.36572703,66292.0,66291.0,0.003913]
[1722373150582,0.29463304,66292.0,66291.0,0.003913]
[1722373150796,0.36607406,66292.0,66291.0,0.003913]
[1722373151345,0.07144102,66292.0,66291.0,0.003913]
[1722373151549,0.06780775,66292.0,66291.0,0.003913]
[1722373151766,0.06780775,66293.0,66291.0,0.0259643]
[1722373151974,0.22221346,66292.0,66291.0,0.003913]
[1722373152145,0.37310084,66292.0,66291.0,0.003913]
[1722373154078,0.37343073,66292.0,66291.0,0.003913]
[1722373155634,0.42433571,66292.0,66291.0,0.003913]
[1722373155833,0.4244163,66292.0,66291.0,0.003913]
[1722373156036,0.22244019,66292.0,66291.0,0.003913]
[1722373157262,0.15063304,66292.0,66291.0,0.003913]
[1722373157602,0.2226031,66292.0,66291.0,0.003913]
[1722373158256,0.33559153,66292.0,66291.0,0.003913]
[1722373158929,0.2226031,66292.0,66291.0,0.003913]
[1722373160757,0.22251001,66292.0,66291.0,0.003913]
[1722373161119,0.22251001,66292.0,66291.0,0.067513]
[1722373161120,0.07187697,66292.0,66291.0,0.067513]
[1722373161440,0.07187697,66292.0,66291.0,0.0822543]
[1722373161600,0.06778386,66295.0,66291.0,0.0822543]
[1722373161802,0.07144074,66294.0,66291.0,0.2988543]
[1722373162014,0.06778386,66299.0,66292.0,0.18872143]
[1722373162225,0.00377092,66302.0,66293.0,0.00133223]
[1722373162426,0.06861386,66305.0,66297.0,0.2166]
[1722373162630,0.00083,66305.0,66304.0,0.0799]
[1722373163464,0.00083,66305.0,66304.0,0.81917526]
[1722373163655,0.06660596,66328.0,66319.0,0.03029]
[1722373163857,0.09037848,66330.0,66320.0,0.05054673]
[1722373163858,0.0677178,66330.0,66320.0,0.05054673]
[1722373164059,0.0762178,66335.0,66324.0,0.2166]
[1722373164280,0.07030258,66334.0,66325.0,0.214371]
[1722373164512,0.0085,66335.0,66326.0,0.0475377]
[1722373165121,0.2259802,66334.0,66326.0,0.0475377]
[1722373165332,0.14976938,66333.0,66318.0,0.1435]
[1722373165562,0.15063304,66332.0,66318.0,0.324577]
[1722373165796,0.07534716,66327.0,66319.0,0.03261312]
[1722373165998,0.00376945,66326.0,66319.0,0.03261312]
[1722373166401,0.00376945,66326.0,66318.0,0.09389]
[1722373167450,0.00376945,66326.0,66318.0,0.10188931]
[1722373169363,0.00376945,66326.0,66324.0,0.001]
[1722373170557,0.00376945,66326.0,66318.0,0.10188931]
[1722373170774,0.00376945,66326.0,66318.0,0.14530316]
[1722373170995,0.00376945,66326.0,66318.0,0.14930316]
[1722373171200,0.00376945,66326.0,66318.0,0.14530316]
[1722373171616,0.00376945,66326.0,66324.0,0.004]
[1722373172469,0.00376945,66326.0,66318.0,0.14530316]
[1722373172911,0.00376945,66326.0,66318.0,0.03828931]
[1722373173928,0.00376945,66326.0,66318.0,0.04228931]
[1722373176557,0.07534716,66320.0,66318.0,0.04228931]
[1722373176713,0.15440249,66326.0,66318.0,0.04228931]
[1722373180199,0.23113304,66325.0,66318.0,0.04228931]
[1722373180420,0.06436974,66324.0,66318.0,0.01199931]
[1722373180559,0.15063304,66323.0,66318.0,0.01199931]
[1722373180795,0.07534716,66320.0,66318.0,0.004]
[1722373181156,0.15440303,66319.0,66318.0,0.004]
[1722373181331,0.15440303,66319.0,66314.0,0.0015542]
[1722373181468,0.21500303,66319.0,66318.0,0.002]
[1722373181872,0.15063304,66319.0,66314.0,0.00779832]
[1722373182073,0.00376999,66318.0,66315.0,0.0015542]
[1722373182273,0.00376999,66318.0,66313.0,0.0015542]
[1722373182660,0.00376999,66318.0,66310.0,0.0015542]
[1722373182839,0.00376999,66318.0,66312.0,0.00800241]
[1722373182991,0.00376999,66318.0,66310.0,0.0015542]
[1722373183855,0.00376999,66318.0,66309.0,0.0015542]
[1722373184919,0.00376999,66318.0,66314.0,0.007]
[1722373185145,0.00376999,66318.0,66315.0,0.0015542]
[1722373185355,0.22975019,66318.0,66309.0,0.0015542]
[1722373185596,0.23103304,66317.0,66309.0,0.0095542]
[1722373185795,0.00377018,66316.0,66309.0,0.0015542]
[1722373185994,0.15440322,66316.0,66309.0,0.0015542]
[1722373186197,0.15440322,66316.0,66314.0,0.008]
[1722373186198,0.0608,66315.0,66314.0,0.008]
[1722373186407,0.21143304,66315.0,66308.0,0.00786828]
[1722373186607,0.00377043,66314.0,66308.0,0.00786828]
[1722373186810,0.15063304,66313.0,66309.0,0.0095542]
[1722373187018,0.00377042,66312.0,66309.0,0.0095542]
[1722373187209,0.15063304,66311.0,66309.0,0.0095542]
[1722373187420,0.00377042,66310.0,66309.0,0.0095542]
[1722373187616,0.00377042,66310.0,66309.0,0.008]
[1722373187893,0.00377042,66310.0,66305.0,0.0015542]
[1722373188338,0.00377042,66310.0,66309.0,0.008]
[1722373188530,0.00377042,66310.0,66305.0,0.0015542]
[1722373188735,0.00477042,66310.0,66309.0,0.008]
[1722373189115,0.00477042,66310.0,66305.0,0.0015542]
[1722373189116,0.00377042,66310.0,66305.0,0.0015542]
[1722373189315,0.00477042,66310.0,66305.0,0.0095542]
[1722373189728,0.00377042,66310.0,66305.0,0.0015542]
[1722373190096,0.00377042,66310.0,66306.0,0.01836151]
[1722373190343,0.00377042,66310.0,66307.0,0.0015542]
[1722373191284,0.00477042,66310.0,66309.0,0.0946]
[1722373191489,0.00377042,66310.0,66309.0,0.0866]
[1722373191689,0.00477042,66310.0,66309.0,0.11684]
[1722373192477,0.00377042,66310.0,66309.0,0.11684]
[1722373192810,0.00477042,66310.0,66309.0,0.12484]
[1722373193592,0.15040346,66311.0,66309.0,0.13827151]
[1722373193744,0.00226651,66310.0,66309.0,0.13827151]
[1722373197066,0.15040346,66311.0,66309.0,0.13827151]
[1722373197284,0.15040346,66311.0,66309.0,0.12484]
[1722373197285,0.00226651,66310.0,66309.0,0.12484]
[1722373198112,0.00226651,66310.0,66309.0,0.11684]
[1722373198343,0.001,66311.0,66309.0,0.12684]
[1722373198553,0.001,66311.0,66310.0,0.19521337]
[1722373198743,0.001,66311.0,66310.0,0.638443]
[1722373199204,0.001,66311.0,66310.0,0.6399972]
[1722373199411,0.07783,66326.0,66313.0,0.03024]
[1722373199556,0.07050213,66325.0,66316.0,0.150792]
[1722373199759,0.00226651,66325.0,66324.0,0.0866]
[1722373200123,0.06982774,66325.0,66324.0,0.0866]
[1722373200320,0.077,66324.0,66313.0,0.03024]
[1722373200571,0.07534716,66318.0,66313.0,0.03024]
[1722373200885,0.0601,66316.0,66313.0,0.03024]
[1722373201040,0.06982774,66315.0,66313.0,0.03024]
[1722373201244,0.06982774,66315.0,66310.0,0.0105542]
[1722373201245,0.15063304,66314.0,66310.0,0.0105542]
[1722373201593,0.21454716,66311.0,66310.0,0.009]
[1722373201806,0.1382,66310.0,66304.0,0.00792092]
[1722373202019,0.1382,66308.0,66292.0,0.0015542]
[1722373202275,0.07534716,66311.0,66292.0,0.0015542]
[1722373202276,0.1382,66302.0,66292.0,0.0015542]
[1722373202473,0.2206186,66301.0,66287.0,0.03024]
[1722373202673,0.06771905,66300.0,66292.0,0.0317942]
[1722373202900,0.15289955,66299.0,66292.0,0.03024]
[1722373203100,0.15289955,66299.0,66293.0,0.01900395]